[Event "Titled Tuesday Blitz October 04 Early 2022"]
[White "Jobava, Baadur"]
[Black "Svane, Frederik"]
[WhiteFideId "13601520"]
[BlackFideId "12923044"]
[WhiteElo "2582"]
[BlackElo "2466"]
[Result "0-1"]
[Round "07"]
[TimeControl "180+1"]
[Date "2022.10.04"]
[WhiteClock "0:00:01"]
[BlackClock "0:00:23"]

1. e4 {[%clk 0:03:00]}  c5 {[%clk 0:02:59]} 2. c3 {[%clk 0:03:01]}  d5 {[%clk 0:02:59]} 3. exd5 {[%clk 0:03:01]}  Qxd5 {[%clk 0:03:00]} 4. d4 {[%clk 0:03:01]}  e6 {[%clk 0:03:01]} 5. Nf3 {[%clk 0:03:01]}  Nf6 {[%clk 0:03:02]} 6. Bd3 {[%clk 0:03:01]}  Be7 {[%clk 0:02:59]} 7. O-O {[%clk 0:03:02]}  O-O {[%clk 0:03:00]} 8. Re1 {[%clk 0:03:02]}  Rd8 {[%clk 0:02:57]} 9. Na3 {[%clk 0:02:58]}  Nc6 {[%clk 0:02:51]} 10. Nb5 {[%clk 0:02:58]}  Qd7 {[%clk 0:02:41]} 11. Be3 {[%clk 0:02:33]}  a6 {[%clk 0:02:19]} 12. Na3 {[%clk 0:02:33]}  b5 {[%clk 0:02:19]} 13. Nc2 {[%clk 0:02:32]}  Bb7 {[%clk 0:02:18]} 14. a4 {[%clk 0:02:29]}  bxa4 {[%clk 0:01:51]} 15. h3 {[%clk 0:02:26]}  cxd4 {[%clk 0:01:50]} 16. Ncxd4 {[%clk 0:02:25]}  Nd5 {[%clk 0:01:42]} 17. Bd2 {[%clk 0:02:10]}  Nxd4 {[%clk 0:01:40]} 18. Nxd4 {[%clk 0:02:10]}  Bc5 {[%clk 0:01:38]} 19. Re4 {[%clk 0:01:46]}  Nf6 {[%clk 0:01:26]} 20. Rh4 {[%clk 0:01:46]}  e5 {[%clk 0:01:26]} 21. Bxh7+ {[%clk 0:01:45]}  Nxh7 {[%clk 0:01:26]} 22. Qh5 {[%clk 0:01:45]}  Be4 {[%clk 0:01:17]} 23. Qxe5 {[%clk 0:00:50]}  Bxd4 {[%clk 0:01:17]} 24. cxd4 {[%clk 0:00:51]}  Qxd4 {[%clk 0:01:10]} 25. Qxe4 {[%clk 0:00:22]}  Qxe4 {[%clk 0:01:08]} 26. Rxe4 {[%clk 0:00:23]}  Rxd2 {[%clk 0:01:09]} 27. Rexa4 {[%clk 0:00:24]}  Rb8 {[%clk 0:00:29]} 28. Rxa6 {[%clk 0:00:23]}  Rbxb2 {[%clk 0:00:29]} 29. Ra8+ {[%clk 0:00:21]}  Nf8 {[%clk 0:00:30]} 30. Rf1 {[%clk 0:00:18]}  g6 {[%clk 0:00:28]} 31. h4 {[%clk 0:00:16]}  Kg7 {[%clk 0:00:28]} 32. g3 {[%clk 0:00:16]}  Ne6 {[%clk 0:00:27]} 33. Kg2 {[%clk 0:00:17]}  Nc5 {[%clk 0:00:27]} 34. Kg1 {[%clk 0:00:03]}  Ne4 {[%clk 0:00:25]} 35. Ra3 {[%clk 0:00:01]}  Nxf2 {[%clk 0:00:23]} 36. Kg2 {[%clk 0:00:01]} 0-1


[Site "https://www.chess.com"]

[Event "Titled Tuesday Blitz October 04 Early 2022"]
[White "Kaidanov, Gregory"]
[Black "Svane, Rasmus"]
[WhiteFideId "2008564"]
[BlackFideId "4657101"]
[WhiteElo "2696"]
[BlackElo "2674"]
[Result "0-1"]
[Round "07"]
[TimeControl "180+1"]
[Date "2022.10.04"]
[WhiteClock "0:00:03"]
[BlackClock "0:00:15"]

1. Nf3 {[%clk 0:02:58]}  d5 {[%clk 0:02:59]} 2. g3 {[%clk 0:02:57]}  Nc6 {[%clk 0:02:56]} 3. d4 {[%clk 0:02:56]}  Bf5 {[%clk 0:02:56]} 4. Bg2 {[%clk 0:02:56]}  Nb4 {[%clk 0:02:56]} 5. Na3 {[%clk 0:02:56]}  e6 {[%clk 0:02:57]} 6. O-O {[%clk 0:02:56]}  h6 {[%clk 0:02:57]} 7. c3 {[%clk 0:02:50]}  Nc6 {[%clk 0:02:56]} 8. Nc2 {[%clk 0:02:43]}  Nf6 {[%clk 0:02:56]} 9. Bf4 {[%clk 0:02:34]}  Bd6 {[%clk 0:02:55]} 10. Bxd6 {[%clk 0:02:33]}  cxd6 {[%clk 0:02:54]} 11. Ne3 {[%clk 0:02:27]}  Be4 {[%clk 0:02:54]} 12. c4 {[%clk 0:02:26]}  Qb6 {[%clk 0:02:50]} 13. cxd5 {[%clk 0:02:19]}  exd5 {[%clk 0:02:37]} 14. Qd2 {[%clk 0:02:15]}  O-O {[%clk 0:02:22]} 15. Rfd1 {[%clk 0:02:15]}  Rac8 {[%clk 0:02:21]} 16. Nh4 {[%clk 0:02:12]}  Rfe8 {[%clk 0:02:16]} 17. Nhf5 {[%clk 0:02:03]}  Nb4 {[%clk 0:02:03]} 18. Bh3 {[%clk 0:01:48]}  Rc6 {[%clk 0:01:24]} 19. f3 {[%clk 0:01:38]}  Bxf5 {[%clk 0:01:20]} 20. Bxf5 {[%clk 0:01:38]}  g6 {[%clk 0:01:11]} 21. Bb1 {[%clk 0:01:37]}  Rc7 {[%clk 0:01:09]} 22. Ng2 {[%clk 0:01:27]}  Kg7 {[%clk 0:01:08]} 23. a3 {[%clk 0:01:20]}  Nc6 {[%clk 0:01:08]} 24. Ba2 {[%clk 0:01:18]}  Na5 {[%clk 0:01:08]} 25. Rac1 {[%clk 0:01:14]}  Rec8 {[%clk 0:01:07]} 26. Nf4 {[%clk 0:01:05]}  Nc4 {[%clk 0:01:06]} 27. Bxc4 {[%clk 0:00:58]}  Rxc4 {[%clk 0:01:07]} 28. Rxc4 {[%clk 0:00:53]}  Rxc4 {[%clk 0:01:08]} 29. e3 {[%clk 0:00:31]}  Qc6 {[%clk 0:01:08]} 30. Qe2 {[%clk 0:00:28]}  a5 {[%clk 0:01:02]} 31. Kg2 {[%clk 0:00:25]}  b5 {[%clk 0:01:03]} 32. h4 {[%clk 0:00:24]}  b4 {[%clk 0:01:03]} 33. axb4 {[%clk 0:00:23]}  axb4 {[%clk 0:01:04]} 34. Nd3 {[%clk 0:00:20]}  b3 {[%clk 0:01:02]} 35. Rd2 {[%clk 0:00:19]}  Qa4 {[%clk 0:00:57]} 36. Qd1 {[%clk 0:00:18]}  Nd7 {[%clk 0:00:46]} 37. Nc1 {[%clk 0:00:16]}  Rc2 {[%clk 0:00:46]} 38. Rxc2 {[%clk 0:00:15]}  bxc2 {[%clk 0:00:47]} 39. Qd2 {[%clk 0:00:12]}  Nb6 {[%clk 0:00:24]} 40. b3 {[%clk 0:00:12]}  Qc6 {[%clk 0:00:24]} 41. Kf2 {[%clk 0:00:11]}  Qc8 {[%clk 0:00:21]} 42. Ne2 {[%clk 0:00:10]}  Nd7 {[%clk 0:00:18]} 43. Kg2 {[%clk 0:00:08]}  Nf6 {[%clk 0:00:16]} 44. Nc3 {[%clk 0:00:08]}  g5 {[%clk 0:00:15]} 45. hxg5 {[%clk 0:00:07]}  hxg5 {[%clk 0:00:16]} 46. Qxc2 {[%clk 0:00:07]}  g4 {[%clk 0:00:16]} 47. f4 {[%clk 0:00:07]}  Ne4 {[%clk 0:00:16]} 48. b4 {[%clk 0:00:03]}  Qxc3 {[%clk 0:00:15]} 49. Qxc3 {[%clk 0:00:02]}  Nxc3 {[%clk 0:00:16]} 50. Kf2 {[%clk 0:00:03]}  Kf6 {[%clk 0:00:15]} 0-1


[Site "https://www.chess.com"]

[Event "Titled Tuesday Blitz October 04 Early 2022"]
[White "Kosakowski, Jakub"]
[Black "Sadubayev, Airat"]
[WhiteFideId "1185080"]
[BlackFideId "13713264"]
[WhiteElo "2463"]
[BlackElo "2215"]
[Result "1-0"]
[Round "07"]
[TimeControl "180+1"]
[Date "2022.10.04"]
[WhiteClock "0:01:16"]
[BlackClock "0:00:17"]

1. e4 {[%clk 0:03:00]}  c6 {[%clk 0:02:57]} 2. d4 {[%clk 0:03:00]}  d5 {[%clk 0:02:58]} 3. e5 {[%clk 0:02:57]}  Bf5 {[%clk 0:02:57]} 4. Nf3 {[%clk 0:02:58]}  e6 {[%clk 0:02:56]} 5. Be2 {[%clk 0:02:58]}  Ne7 {[%clk 0:02:55]} 6. O-O {[%clk 0:02:57]}  Nd7 {[%clk 0:02:54]} 7. Nbd2 {[%clk 0:02:57]}  Bg6 {[%clk 0:02:54]} 8. Nb3 {[%clk 0:02:55]}  Nf5 {[%clk 0:02:53]} 9. a4 {[%clk 0:02:54]}  Be7 {[%clk 0:02:44]} 10. a5 {[%clk 0:02:53]}  O-O {[%clk 0:02:41]} 11. g4 {[%clk 0:02:52]}  Nh6 {[%clk 0:02:41]} 12. h3 {[%clk 0:02:51]}  Kh8 {[%clk 0:02:40]} 13. Bd3 {[%clk 0:02:48]}  Ng8 {[%clk 0:02:39]} 14. Re1 {[%clk 0:02:46]}  a6 {[%clk 0:02:26]} 15. Bxg6 {[%clk 0:02:39]}  fxg6 {[%clk 0:02:25]} 16. Be3 {[%clk 0:02:37]}  Nh6 {[%clk 0:02:15]} 17. Kg2 {[%clk 0:02:36]}  Nf7 {[%clk 0:02:15]} 18. Qd3 {[%clk 0:02:34]}  Ng5 {[%clk 0:02:11]} 19. Nfd2 {[%clk 0:02:32]}  Qc7 {[%clk 0:01:56]} 20. f4 {[%clk 0:02:31]}  Nf7 {[%clk 0:01:55]} 21. c4 {[%clk 0:02:31]}  Rad8 {[%clk 0:01:46]} 22. cxd5 {[%clk 0:02:27]}  cxd5 {[%clk 0:01:45]} 23. Rec1 {[%clk 0:02:27]}  Qb8 {[%clk 0:01:45]} 24. Rc2 {[%clk 0:02:24]}  Rc8 {[%clk 0:01:36]} 25. Rac1 {[%clk 0:02:24]}  Rxc2 {[%clk 0:01:35]} 26. Qxc2 {[%clk 0:02:24]}  Bd8 {[%clk 0:01:30]} 27. Nf3 {[%clk 0:02:16]}  Nh6 {[%clk 0:01:21]} 28. Ne1 {[%clk 0:02:10]}  Ng8 {[%clk 0:01:19]} 29. Nd3 {[%clk 0:02:07]}  Ne7 {[%clk 0:01:16]} 30. Ndc5 {[%clk 0:02:07]}  Nxc5 {[%clk 0:01:16]} 31. Nxc5 {[%clk 0:02:07]}  Qc8 {[%clk 0:01:16]} 32. Qb3 {[%clk 0:01:58]}  Bxa5 {[%clk 0:01:09]} 33. Nxb7 {[%clk 0:01:58]}  Bc7 {[%clk 0:01:05]} 34. Nc5 {[%clk 0:01:55]}  g5 {[%clk 0:00:59]} 35. f5 {[%clk 0:01:55]}  exf5 {[%clk 0:00:58]} 36. Bxg5 {[%clk 0:01:56]}  Ng6 {[%clk 0:00:56]} 37. Qb7 {[%clk 0:01:50]}  Bb8 {[%clk 0:00:28]} 38. Qxc8 {[%clk 0:01:43]}  Rxc8 {[%clk 0:00:29]} 39. gxf5 {[%clk 0:01:43]}  Nxe5 {[%clk 0:00:26]} 40. dxe5 {[%clk 0:01:43]}  Bxe5 {[%clk 0:00:27]} 41. Nd3 {[%clk 0:01:41]}  Rxc1 {[%clk 0:00:25]} 42. Bxc1 {[%clk 0:01:41]}  Bd4 {[%clk 0:00:25]} 43. Nf4 {[%clk 0:01:41]}  Kg8 {[%clk 0:00:22]} 44. Nxd5 {[%clk 0:01:42]}  g6 {[%clk 0:00:21]} 45. fxg6 {[%clk 0:01:40]}  hxg6 {[%clk 0:00:22]} 46. Kf3 {[%clk 0:01:40]}  Kf7 {[%clk 0:00:22]} 47. Ke4 {[%clk 0:01:40]}  Bc5 {[%clk 0:00:23]} 48. b4 {[%clk 0:01:40]}  Bd6 {[%clk 0:00:22]} 49. Bd2 {[%clk 0:01:39]}  Ke6 {[%clk 0:00:21]} 50. Nf4+ {[%clk 0:01:40]}  Kf7 {[%clk 0:00:21]} 51. Kd5 {[%clk 0:01:38]}  Bc7 {[%clk 0:00:21]} 52. Kc6 {[%clk 0:01:37]}  Be5 {[%clk 0:00:20]} 53. Kb6 {[%clk 0:01:37]}  Kf6 {[%clk 0:00:20]} 54. Kxa6 {[%clk 0:01:37]}  Kf5 {[%clk 0:00:20]} 55. b5 {[%clk 0:01:33]}  g5 {[%clk 0:00:21]} 56. Nd3 {[%clk 0:01:32]}  Bd6 {[%clk 0:00:20]} 57. Nf2 {[%clk 0:01:27]}  Bg3 {[%clk 0:00:19]} 58. Ng4 {[%clk 0:01:22]}  Ke4 {[%clk 0:00:19]} 59. Bxg5 {[%clk 0:01:22]}  Kf3 {[%clk 0:00:19]} 60. b6 {[%clk 0:01:20]}  Kg2 {[%clk 0:00:19]} 61. b7 {[%clk 0:01:17]}  Kxh3 {[%clk 0:00:19]} 62. Ne3 {[%clk 0:01:18]}  Be5 {[%clk 0:00:17]} 63. Nc4 {[%clk 0:01:16]}  Bg3 {[%clk 0:00:17]} 64. Be7 {[%clk 0:01:16]} 1-0


[Site "https://www.chess.com"]

[Event "Titled Tuesday Blitz October 04 Early 2022"]
[White "Le, Tuan Minh"]
[Black "Wirig, Anthony"]
[WhiteFideId "12401153"]
[BlackFideId "615013"]
[WhiteElo "2530"]
[BlackElo "2474"]
[Result "1-0"]
[Round "07"]
[TimeControl "180+1"]
[Date "2022.10.04"]
[WhiteClock "0:00:06"]
[BlackClock "0:00:05"]

1. d4 {[%clk 0:03:00]}  d5 {[%clk 0:02:59]} 2. Nf3 {[%clk 0:03:01]}  c6 {[%clk 0:03:00]} 3. Bf4 {[%clk 0:03:00]}  Bf5 {[%clk 0:02:53]} 4. e3 {[%clk 0:02:59]}  e6 {[%clk 0:02:54]} 5. c4 {[%clk 0:03:00]}  Qb6 {[%clk 0:02:43]} 6. Qb3 {[%clk 0:02:49]}  Qxb3 {[%clk 0:02:25]} 7. axb3 {[%clk 0:02:49]}  Bxb1 {[%clk 0:02:26]} 8. Rxb1 {[%clk 0:02:49]}  Bb4+ {[%clk 0:02:26]} 9. Kd1 {[%clk 0:02:49]}  Nf6 {[%clk 0:02:19]} 10. Bd3 {[%clk 0:02:43]}  Nbd7 {[%clk 0:02:07]} 11. Ke2 {[%clk 0:02:40]}  Nh5 {[%clk 0:02:04]} 12. Bg3 {[%clk 0:02:37]}  Nxg3+ {[%clk 0:01:57]} 13. hxg3 {[%clk 0:02:38]}  h6 {[%clk 0:01:58]} 14. g4 {[%clk 0:02:38]}  Ke7 {[%clk 0:01:58]} 15. g5 {[%clk 0:02:17]}  hxg5 {[%clk 0:01:54]} 16. Nxg5 {[%clk 0:02:18]}  a6 {[%clk 0:01:22]} 17. f4 {[%clk 0:02:12]}  Nf6 {[%clk 0:01:16]} 18. Nf3 {[%clk 0:02:07]}  Bd6 {[%clk 0:01:13]} 19. Rbg1 {[%clk 0:02:01]}  Ng4 {[%clk 0:01:10]} 20. Rh3 {[%clk 0:01:56]}  f5 {[%clk 0:00:57]} 21. Rgh1 {[%clk 0:01:41]}  Rh6 {[%clk 0:00:56]} 22. Rxh6 {[%clk 0:01:36]}  Nxh6 {[%clk 0:00:55]} 23. Ng5 {[%clk 0:01:22]}  Nf7 {[%clk 0:00:43]} 24. Nf3 {[%clk 0:01:18]}  Rh8 {[%clk 0:00:40]} 25. Rg1 {[%clk 0:01:18]}  g5 {[%clk 0:00:26]} 26. fxg5 {[%clk 0:01:12]}  Bg3 {[%clk 0:00:25]} 27. cxd5 {[%clk 0:00:44]}  cxd5 {[%clk 0:00:23]} 28. b4 {[%clk 0:00:44]}  Kd6 {[%clk 0:00:15]} 29. g6 {[%clk 0:00:36]}  Nd8 {[%clk 0:00:15]} 30. Rh1 {[%clk 0:00:29]}  Rg8 {[%clk 0:00:13]} 31. Rh6 {[%clk 0:00:29]}  Nc6 {[%clk 0:00:11]} 32. g7 {[%clk 0:00:26]}  Ke7 {[%clk 0:00:05]} 33. Rg6 {[%clk 0:00:27]}  Bd6 {[%clk 0:00:05]} 34. Ng5 {[%clk 0:00:25]}  Nd8 {[%clk 0:00:05]} 35. b5 {[%clk 0:00:24]}  a5 {[%clk 0:00:05]} 36. Kf3 {[%clk 0:00:22]}  a4 {[%clk 0:00:05]} 37. g4 {[%clk 0:00:22]}  fxg4+ {[%clk 0:00:05]} 38. Kxg4 {[%clk 0:00:23]}  Bb4 {[%clk 0:00:05]} 39. Nh7 {[%clk 0:00:17]}  Kf7 {[%clk 0:00:03]} 40. Ng5+ {[%clk 0:00:17]}  Ke7 {[%clk 0:00:03]} 41. Bc2 {[%clk 0:00:18]}  Bd2 {[%clk 0:00:03]} 42. Kf3 {[%clk 0:00:18]}  Bc1 {[%clk 0:00:04]} 43. Bxa4 {[%clk 0:00:18]}  Bxb2 {[%clk 0:00:04]} 44. Bb3 {[%clk 0:00:15]}  Ba3 {[%clk 0:00:04]} 45. Nxe6 {[%clk 0:00:11]}  Nxe6 {[%clk 0:00:04]} 46. Bxd5 {[%clk 0:00:12]}  Rxg7 {[%clk 0:00:03]} 47. Rxe6+ {[%clk 0:00:12]}  Kd7 {[%clk 0:00:04]} 48. Rb6 {[%clk 0:00:12]}  Kc8 {[%clk 0:00:04]} 49. Ke4 {[%clk 0:00:11]}  Bc1 {[%clk 0:00:03]} 50. Re6 {[%clk 0:00:09]}  Kc7 {[%clk 0:00:02]} 51. b6+ {[%clk 0:00:09]}  Kd7 {[%clk 0:00:02]} 52. Kd3 {[%clk 0:00:08]}  Kd8 {[%clk 0:00:01]} 53. e4 {[%clk 0:00:09]}  Ba3 {[%clk 0:00:02]} 54. Kc4 {[%clk 0:00:08]}  Be7 {[%clk 0:00:02]} 55. Bxb7 {[%clk 0:00:08]}  Rg1 {[%clk 0:00:03]} 56. Kd5 {[%clk 0:00:05]}  Rb1 {[%clk 0:00:03]} 57. e5 {[%clk 0:00:05]}  Rb5+ {[%clk 0:00:03]} 58. Ke4 {[%clk 0:00:06]}  Rb4 {[%clk 0:00:04]} 59. Kd3 {[%clk 0:00:05]}  Kd7 {[%clk 0:00:05]} 60. Rg6 {[%clk 0:00:04]}  Rb1 {[%clk 0:00:04]} 61. Ke4 {[%clk 0:00:05]}  Ke8 {[%clk 0:00:03]} 62. Bc6+ {[%clk 0:00:05]}  Kf7 {[%clk 0:00:04]} 63. Rh6 {[%clk 0:00:05]}  Kg7 {[%clk 0:00:04]} 64. Re6 {[%clk 0:00:05]}  Kf7 {[%clk 0:00:04]} 65. Bd5 {[%clk 0:00:06]}  Kf8 {[%clk 0:00:04]} 66. Rg6 {[%clk 0:00:06]}  Rb4 {[%clk 0:00:05]} 67. Rg8# {[%clk 0:00:06]} 1-0


[Site "https://www.chess.com"]

[Event "Titled Tuesday Blitz October 04 Early 2022"]
[White "Rustemov, Alexander"]
[Black "Lazavik, Denis"]
[WhiteFideId "4119002"]
[BlackFideId "13515110"]
[WhiteElo "2816"]
[BlackElo "2437"]
[Result "0-1"]
[Round "07"]
[TimeControl "180+1"]
[Date "2022.10.04"]
[WhiteClock "0:00:01"]
[BlackClock "0:00:04"]

1. Nf3 {[%clk 0:02:58]}  d5 {[%clk 0:02:59]} 2. e3 {[%clk 0:02:45]}  Nf6 {[%clk 0:02:56]} 3. b3 {[%clk 0:02:41]}  c6 {[%clk 0:02:56]} 4. Bb2 {[%clk 0:02:40]}  Bg4 {[%clk 0:02:51]} 5. h3 {[%clk 0:02:39]}  Bh5 {[%clk 0:02:51]} 6. g4 {[%clk 0:02:39]}  Bg6 {[%clk 0:02:51]} 7. Ne5 {[%clk 0:02:39]}  Nbd7 {[%clk 0:02:48]} 8. Nxg6 {[%clk 0:02:38]}  hxg6 {[%clk 0:02:48]} 9. Bg2 {[%clk 0:02:34]}  e6 {[%clk 0:02:37]} 10. d3 {[%clk 0:02:32]}  Bd6 {[%clk 0:02:36]} 11. Nd2 {[%clk 0:02:31]}  Qe7 {[%clk 0:02:37]} 12. a3 {[%clk 0:02:30]}  O-O-O {[%clk 0:02:34]} 13. b4 {[%clk 0:02:24]}  Kb8 {[%clk 0:02:31]} 14. c4 {[%clk 0:02:17]}  Be5 {[%clk 0:02:10]} 15. d4 {[%clk 0:02:15]}  Bc7 {[%clk 0:02:10]} 16. Qc2 {[%clk 0:02:12]}  Nb6 {[%clk 0:01:56]} 17. O-O-O {[%clk 0:02:05]}  e5 {[%clk 0:01:47]} 18. c5 {[%clk 0:01:57]}  Nbd7 {[%clk 0:01:45]} 19. Nb3 {[%clk 0:01:36]}  exd4 {[%clk 0:01:42]} 20. Bxd4 {[%clk 0:01:31]}  Ne5 {[%clk 0:01:40]} 21. Kb2 {[%clk 0:01:28]}  Ne4 {[%clk 0:01:23]} 22. Ka2 {[%clk 0:01:21]}  f5 {[%clk 0:01:21]} 23. f3 {[%clk 0:01:12]}  Ng3 {[%clk 0:01:10]} 24. Rhe1 {[%clk 0:01:11]}  fxg4 {[%clk 0:01:06]} 25. fxg4 {[%clk 0:01:04]}  Rhf8 {[%clk 0:01:01]} 26. e4 {[%clk 0:00:50]}  dxe4 {[%clk 0:00:41]} 27. Bxe4 {[%clk 0:00:50]}  Qg5 {[%clk 0:00:26]} 28. Bxe5 {[%clk 0:00:40]}  Bxe5 {[%clk 0:00:24]} 29. Bxg6 {[%clk 0:00:40]}  Rxd1 {[%clk 0:00:22]} 30. Rxd1 {[%clk 0:00:39]}  Qe3 {[%clk 0:00:19]} 31. Rd3 {[%clk 0:00:35]}  Qg1 {[%clk 0:00:18]} 32. Qd2 {[%clk 0:00:25]}  Bc7 {[%clk 0:00:17]} 33. Bf5 {[%clk 0:00:20]}  g6 {[%clk 0:00:12]} 34. Rd7 {[%clk 0:00:16]}  Nf1 {[%clk 0:00:05]} 35. Qh6 {[%clk 0:00:08]}  Qf2+ {[%clk 0:00:05]} 36. Nd2 {[%clk 0:00:08]}  Rc8 {[%clk 0:00:04]} 37. Bxg6 {[%clk 0:00:05]}  Ne3 {[%clk 0:00:04]} 38. Qg7 {[%clk 0:00:04]}  Nd5 {[%clk 0:00:03]} 39. Qb2 {[%clk 0:00:03]}  Qe3 {[%clk 0:00:02]} 40. Bf5 {[%clk 0:00:03]}  Be5 {[%clk 0:00:02]} 41. Qc2 {[%clk 0:00:01]}  Nc3+ {[%clk 0:00:02]} 42. Kb2 {[%clk 0:00:01]}  Nb5+ {[%clk 0:00:03]} 43. Ka2 {[%clk 0:00:02]}  Qxa3+ {[%clk 0:00:03]} 44. Kb1 {[%clk 0:00:01]}  Qa1# {[%clk 0:00:04]} 0-1


[Site "https://www.chess.com"]

[Event "Titled Tuesday Blitz October 04 Early 2022"]
[White "Safarli, Eltaj"]
[Black "Saydaliev, Saidakbar"]
[WhiteFideId "13402129"]
[BlackFideId "14203693"]
[WhiteElo "2634"]
[BlackElo "2276"]
[Result "0-1"]
[Round "07"]
[TimeControl "180+1"]
[Date "2022.10.04"]
[WhiteClock "0:00:11"]
[BlackClock "0:00:12"]

1. e4 {[%clk 0:03:00]}  e5 {[%clk 0:02:59]} 2. Nf3 {[%clk 0:03:00]}  Nc6 {[%clk 0:03:00]} 3. Bb5 {[%clk 0:03:00]}  a6 {[%clk 0:03:00]} 4. Ba4 {[%clk 0:02:59]}  Nf6 {[%clk 0:03:00]} 5. Nc3 {[%clk 0:03:00]}  b5 {[%clk 0:02:55]} 6. Bb3 {[%clk 0:03:00]}  Bc5 {[%clk 0:02:55]} 7. d3 {[%clk 0:02:58]}  d6 {[%clk 0:02:54]} 8. a4 {[%clk 0:02:58]}  Rb8 {[%clk 0:02:53]} 9. axb5 {[%clk 0:02:58]}  axb5 {[%clk 0:02:54]} 10. Nd5 {[%clk 0:02:59]}  h6 {[%clk 0:02:49]} 11. c3 {[%clk 0:02:58]}  Nxd5 {[%clk 0:02:45]} 12. Bxd5 {[%clk 0:02:59]}  Ne7 {[%clk 0:02:45]} 13. Bb3 {[%clk 0:02:59]}  Bb6 {[%clk 0:02:43]} 14. h3 {[%clk 0:02:55]}  O-O {[%clk 0:02:42]} 15. O-O {[%clk 0:02:50]}  Be6 {[%clk 0:02:41]} 16. Bxe6 {[%clk 0:02:42]}  fxe6 {[%clk 0:02:42]} 17. d4 {[%clk 0:02:43]}  exd4 {[%clk 0:02:27]} 18. cxd4 {[%clk 0:02:44]}  Ng6 {[%clk 0:02:27]} 19. g3 {[%clk 0:02:38]}  Qf6 {[%clk 0:02:22]} 20. Kg2 {[%clk 0:02:39]}  e5 {[%clk 0:02:20]} 21. d5 {[%clk 0:02:36]}  Rf7 {[%clk 0:02:08]} 22. Nh2 {[%clk 0:02:34]}  Qe7 {[%clk 0:02:04]} 23. Qh5 {[%clk 0:02:31]}  Nf8 {[%clk 0:01:26]} 24. Ng4 {[%clk 0:02:21]}  Nh7 {[%clk 0:01:21]} 25. Qg6 {[%clk 0:02:06]}  Kh8 {[%clk 0:01:20]} 26. Be3 {[%clk 0:02:02]}  Bxe3 {[%clk 0:00:49]} 27. Nxe3 {[%clk 0:02:02]}  Rbf8 {[%clk 0:00:49]} 28. Nf5 {[%clk 0:02:00]}  Qd7 {[%clk 0:00:49]} 29. h4 {[%clk 0:01:29]}  Rf6 {[%clk 0:00:40]} 30. Qg4 {[%clk 0:01:29]}  Qf7 {[%clk 0:00:40]} 31. Qe2 {[%clk 0:01:11]}  Rxf5 {[%clk 0:00:30]} 32. exf5 {[%clk 0:01:10]}  Qxd5+ {[%clk 0:00:25]} 33. Kg1 {[%clk 0:01:09]}  Rxf5 {[%clk 0:00:22]} 34. Rfd1 {[%clk 0:01:04]}  Qb7 {[%clk 0:00:20]} 35. Ra5 {[%clk 0:00:58]}  e4 {[%clk 0:00:20]} 36. Qg4 {[%clk 0:00:51]}  Rf8 {[%clk 0:00:19]} 37. b4 {[%clk 0:00:42]}  Qb6 {[%clk 0:00:17]} 38. Ra2 {[%clk 0:00:40]}  e3 {[%clk 0:00:17]} 39. fxe3 {[%clk 0:00:39]}  Qxe3+ {[%clk 0:00:18]} 40. Kg2 {[%clk 0:00:39]}  Nf6 {[%clk 0:00:18]} 41. Qe2 {[%clk 0:00:37]}  Qb3 {[%clk 0:00:12]} 42. Rb2 {[%clk 0:00:33]}  Qa3 {[%clk 0:00:12]} 43. Rf1 {[%clk 0:00:31]}  Re8 {[%clk 0:00:12]} 44. Qc2 {[%clk 0:00:11]}  Re3 {[%clk 0:00:12]} 0-1


[Site "https://www.chess.com"]